Cogmind - Beta 13 @@@ ROGUE MODE // 2024.04.20 @ 17:34:14 Player: monistgf Result: Destroyed by H-77 Assassin with Coil Gun Performance ------------- Evolutions (6) 3000 Regions Visited (8) 1600 Robots Destroyed (49) 245 Value Destroyed (1697) 1697 Prototype IDs (3) 60 Alien Tech Used (0) 0 Bonus (0) 0 TOTAL SCORE: 6602 Bonus ------- None Cogmind --------- Core Integrity 0/1150 Matter 251/300 Energy 100/100 System Corruption 12% Temperature Cool (28) Movement Core (700) Ox13 Location -4/Factory Parts ------- > --- POWER (2) -------- (None) > --- PROPULSION (4) --- (None) > --- UTILITY (10) ----- High-capacity Storage Unit Improved Signal Interpreter Melee Analysis Suite Improved Melee Analysis Suite Improved Target Analyzer Improved Target Analyzer > --- WEAPON (3) ------- (None) > --- INVENTORY (20) --- Improved Heat Sink Improved Sensor Array Improved Targeting Computer Hacking Suite Coil Gun Coil Gun Coil Gun Mass Driver Katana Peak State ------------ > --- POWER ------------ Light Antimatter Reactor > --- PROPULSION ------- Flexi-carbon Leg Flexi-carbon Leg Myomer Leg Myomer Leg > --- UTILITY ---------- Improved Heat Sink High-capacity Storage Unit Advanced Sensor Array Improved Signal Interpreter Improved Targeting Computer Improved Melee Analysis Suite Improved Target Analyzer Improved Actuator Array Centrium Heavy Armor Plating > --- WEAPON ----------- Improved Proton Missile Launcher Katana Katana > --- INVENTORY -------- Armored Treads Medium Treads Flexi-carbon Leg Wheel Wheel Improved Heat Sink Improved Sensor Array Improved Targeting Computer Melee Analysis Suite Improved Light Armor Plating Improved Medium Armor Plating Improved Medium Armor Plating Hacking Suite Coil Gun Coil Gun Coil Gun Mass Driver Katana Katana Katana [Rating: 94] Favorites ----------- Power Micro Nuclear Core Engine Light Deuterium Engine Power Core Micro Nuclear Core Reactor Light Antimatter Reactor Propulsion Wheel Treads Armored Treads Leg Myomer Leg Wheel Wheel Utility Utility Shielding Device Heat Sink Storage High-capacity Storage Unit Processor Improved Melee Analysis Suite Protection Utility Shielding Weapon Katana Energy Gun EM Pulse Gun Ballistic Gun Gauss Rifle Launcher Improved Proton Missile Launcher Slashing Weapon Katana Build | -11 -10 -9 -9 -8 -7 -6 -5 -4 ------- Run | Yrd Mat Mat Min Mat Fac Fac Fac Fac Slots Evolved 12 | . . 2 . 2 2 2 2 2 Power 1 | . . . . . . . 1 . Propulsion 2 | . . 1 . . 1 . . . Utility 8 | . . 1 . 1 1 2 1 2 Weapon 1 | . . . . 1 . . . . Parts Attached 92 | . 4 2 1 5 23 4 4 49 Power 12 | . 1 . . 1 1 . 2 7 Engine 7 | . 1 . . 1 . . 2 3 Core 3 | . . . . . 1 . . 2 Reactor 2 | . . . . . . . . 2 Propulsion 31 | . 2 1 . . 10 1 . 17 Treads 4 | . . . . . . . . 4 Leg 9 | . . . . . . . . 9 Wheel 17 | . 2 1 . . 10 1 . 3 Hover 1 | . . . . . . . . 1 Flight . | . . . . . . . . . Utility 29 | . 1 1 . 2 3 3 2 17 Device 8 | . . . . 1 . 2 1 4 Storage 2 | . . 1 . . 1 . . . Processor 7 | . . . . . . 1 . 6 Hackware . | . . . . . . . . . Protection 12 | . 1 . . 1 2 . 1 7 Artifact . | . . . . . . . . . Weapon 20 | . . . 1 2 9 . . 8 Energy Gun 2 | . . . 1 . 1 . . . Energy Cannon . | . . . . . . . . . Ballistic Gun 6 | . . . . 2 4 . . . Ballistic Cannon . | . . . . . . . . . Launcher 3 | . . . . . 1 . . 2 Special Weapon . | . . . . . . . . . Impact Weapon . | . . . . . . . . . Slashing Weapon 9 | . . . . . 3 . . 6 Piercing Weapon . | . . . . . . . . . Special Melee Weapon . | . . . . . . . . . Unidentified Prototypes 3 | . . . . . 1 . . 2 Parts Lost 45 | . . 1 . 1 . . 1 42 Power 7 | . . . . 1 . . . 6 Propulsion 12 | . . . . . . . . 12 Utility 17 | . . . . . . . 1 16 Weapon 9 | . . 1 . . . . . 8 Highest Loss Streak 24 | . . 1 . 1 . . 1 24 To Critical Strikes 1 | . . . . . . . . 1 Average Slot Usage (%) 88 | . 85 83 88 86 95 93 93 81 Engine 4 | . 14 11 11 6 2 . 4 1 Core 3 | . . . . . 4 6 5 2 Leg 1 | . 3 . . . . . . 5 Wheel 19 | . 24 33 33 27 26 20 17 7 Device 10 | . . . . 7 7 13 17 15 Storage 7 | . 14 11 11 9 7 6 5 5 Processor 5 | . . . . . . 6 5 14 Protection 14 | . . 11 11 13 22 20 17 8 Energy Gun 2 | . 14 6 11 9 . . . . Ballistic Gun 8 | . 14 11 11 13 21 . . . Slashing Weapon 8 | . . . . . . 20 17 13 Naked Turns . | . . . . . . . . . Heaviest Build 94 | 11 14 19 19 26 70 70 82 94 Greatest Support 90 | 20 32 42 42 42 58 48 48 90 Greatest Overweight (x) 16 | . . . . . 1 1 1 16 Average Overweight (x) . | . . . . . . 1 1 1 Largest Inventory Capacity 20 | . 8 10 10 10 20 20 20 20 Average Capacity 17 | . 8 9 10 10 18 20 20 20 Most Carried 20 | . 8 7 7 10 20 20 20 20 Average Carried 15 | . 7 7 6 8 15 18 19 18 Final Capacity 20 | 8 8 10 10 10 20 20 20 20 Final Carried 20 | 6 8 7 6 9 20 20 20 9 Class Distribution -------------------- 26% | Gladiator 24% | Scavenger-Gladiator 23% | Mutant 13% | Tank 12% | Scavenger-Tank Dominant Class ---------------- Mutant | -10/Materials Mutant | -9/Materials Mutant | -9/Mines Mutant | -8/Materials Scavenger-Tank | -7/Factory Gladiator | -6/Factory Gladiator | -5/Factory Scavenger-Gladiator | -4/Factory Resources | -11 -10 -9 -9 -8 -7 -6 -5 -4 ----------- Run | Yrd Mat Mat Min Mat Fac Fac Fac Fac Matter Collected 1140 | 200 54 . . 95 381 30 50 330 Remotely . | . . . . . . . . . Salvage Created 2840 | . 224 . . 83 429 147 410 1547 Parts 119 | . 10 . . 2 22 5 17 63 Haulers Intercepted 3 | . . . . . . 1 2 . Recyclers Shooed 2 | . . . . . 1 . . 1 Parts Field Recycled . | . . . . . . . . . Retrieved Matter . | . . . . . . . . . Parts Self-Destructed . | . . . . . . . . . Prevented . | . . . . . . . . . Kills | -11 -10 -9 -9 -8 -7 -6 -5 -4 ------- Run | Yrd Mat Mat Min Mat Fac Fac Fac Fac Combat Hostiles Destroyed 25 | . 4 . . . 2 . . 19 Melee 10 | . . . . . . . . 10 Guns 5 | . 3 . . . 2 . . . AOE 5 | . 1 . . . . . . 4 Classes Destroyed 12 | . 2 . . 1 4 2 . 3 Worker 8 | . . . . . 4 2 1 1 Builder 4 | . . . . . 1 . . 3 Hauler 3 | . . . . . . 1 2 . Recycler 7 | . . . . 1 3 . 2 1 Mechanic 1 | . . . . . . 1 . . Watcher 1 | . 1 . . . . . . . Swarmer 2 | . . . . . . . . 2 Grunt 13 | . 4 . . . . . . 9 Sentry 1 | . . . . . 1 . . . Specialist 1 | . . . . . 1 . . . Hunter 4 | . . . . . . . . 4 Programmer 4 | . . . . . . . . 4 Best Kill Streak 10 | . 4 . . 1 5 2 3 10 Combat Bots Only 8 | . 2 . . . 1 . . 8 Max Kills in Single Turn 2 | . 1 . . 1 2 1 1 2 Gunslinging . | . . . . . . . . . Exploded 1 | . 1 . . . . . . 1 Melee 1 | . . . . . . . . 1 Uniques/NPCs Destroyed . | . . . . . . . . . Combat | -11 -10 -9 -9 -8 -7 -6 -5 -4 -------- Run | Yrd Mat Mat Min Mat Fac Fac Fac Fac Hostile Shots Fired 602 | . 26 5 . . 34 1 5 531 Missed 160 | . 5 2 . . 9 1 2 141 Damage Taken 7207 | . 271 46 . 101 368 . 147 6274 Core 1289 | . 47 32 . . 43 . . 1167 Absorbed by Shields 271 | . . . . . . . 56 215 Redirected to Shielding 266 | . . . . 16 3 . 8 239 Core Remaining (%) 95 | 100 81 . 92 100 93 100 100 . Volleys Fired 53 | . 24 1 1 2 15 . . 10 Largest 3 | . 2 1 2 3 3 . . 1 Hottest 98 | . 60 20 70 98 84 . . 43 Shots Fired 105 | . 48 1 2 5 40 . . 9 Gun 96 | . 48 1 2 5 40 . . . Cannon . | . . . . . . . . . Launcher 9 | . . . . . . . . 9 Special . | . . . . . . . . . Kinetic 69 | . 24 1 1 3 40 . . . Thermal 3 | . . . 1 2 . . . . Explosive . | . . . . . . . . . Electromagnetic 33 | . 24 . . . . . . 9 Robot Hit Streak 11 | . 10 . 2 4 11 . . 3 Robot Miss Streak 3 | . 3 1 . 2 3 . . 3 Penetration Max 1 | . . . . . 1 . . . Secondary Targets 1 | . . . . . 1 . . . Max Gunslinging Chain 1 | . . . . . 1 . . . Shots Hit Robots 144 | . 34 . 2 3 23 7 11 64 Core Hits 81 | . 12 . 1 2 16 4 4 42 Critical Kills 2 | . 1 . . 1 . . . . Critical Parts Destroyed 1 | . 1 . . . . . . . Critical Strikes 17 | . 2 . . 2 . 1 1 11 Burn 1 | . . . . 1 . . . . Destroy 3 | . 2 . . 1 . . . . Sever 13 | . . . . . . 1 1 11 Melee Attacks 101 | . . . . . . 10 13 78 Impact . | . . . . . . . . . Slashing 101 | . . . . . . 10 13 78 Piercing . | . . . . . . . . . Sneak Attacks 16 | . . . . . . 5 8 3 Combat Hostiles . | . . . . . . . . . Follow-up Attacks 22 | . . . . . . 2 2 18 Damage Inflicted 5279 | . 411 . 18 36 501 409 655 3249 Guns 939 | . 384 . 18 36 501 . . . Cannons . | . . . . . . . . . Explosions 1234 | . 27 . . . . . . 1207 Melee 3106 | . . . . . . 409 655 2042 Ramming . | . . . . . . . . . Kinetic 652 | . 121 . 6 24 501 . . . Thermal 258 | . 27 . 12 12 . . . 207 Explosive . | . . . . . . . . . Electromagnetic 1263 | . 263 . . . . . . 1000 Impact . | . . . . . . . . . Slashing 3106 | . . . . . . 409 655 2042 Piercing . | . . . . . . . . . Highest Corruption 12 | . . . . . 2 . . 12 Average Corruption 5 | . . . . . 2 . . 5 Corruption Purged . | . . . . . . . . . Corruption Blocked . | . . . . . . . . . Effects 17 | . . . . . . . . 17 Message Errors 6 | . . . . . . . . 6 Matter Fused 4 | . . . . . . . . 4 Heat Flow Errors 1 | . . . . . . . . 1 Energy Discharges 2 | . . . . . . . . 2 Parts Rejected 1 | . . . . . . . . 1 Data Loss (minor) 1 | . . . . . . . . 1 Data Loss (major) 1 | . . . . . . . . 1 Weapon Failures 1 | . . . . . . . . 1 Overload Shots . | . . . . . . . . . Overflow Damage 278 | . . . . . . 59 113 106 Projectiles . | . . . . . . . . . Explosions . | . . . . . . . . . Melee 278 | . . . . . . 59 113 106 Knockbacks . | . . . . . . . . . Impact . | . . . . . . . . . Kinetic . | . . . . . . . . . Secondary . | . . . . . . . . . Self-Inflicted Damage 10 | . . . . . . . . 10 Shots 1 | . . . . . . . . 1 Rammed . | . . . . . . . . . Targets Rammed . | . . . . . . . . . Kicked . | . . . . . . . . . Crushed . | . . . . . . . . . Highest Temperature 234 | . 102 . 24 . 7 . . 234 Average Temperature 38 | . 36 . 12 . 3 . . 73 Received Heat Transfer 840 | . 147 18 . 36 96 . 17 526 Siege Activations . | . . . . . . . . . Robots Corrupted 5 | . . . . . . . . 5 Combat Hostiles 5 | . . . . . . . . 5 Parts Fried 8 | . . . . . . . . 8 Impact Corruptions . | . . . . . . . . . Robots Melted . | . . . . . . . . . Combat Hostiles . | . . . . . . . . . Parts Melted 1 | . . . . . . . . 1 Heat Transferred 298 | . . . 37 111 . . . 150 Parts Sabotaged . | . . . . . . . . . Parts Stolen . | . . . . . . . . . Parts Stripped . | . . . . . . . . . Power Chain Reactions 2 | . 1 . . . . . . 1 Alert | -11 -10 -9 -9 -8 -7 -6 -5 -4 ------- Run | Yrd Mat Mat Min Mat Fac Fac Fac Fac Peak Influence 313 | . 220 127 49 18 55 90 64 313 Initial 92 | . . 92 49 18 5 26 44 18 Average 50 | . 57 97 49 13 25 58 44 77 Maximum Alert Level 1 | . 1 . . . . . . 1 Low Security (%) 95 | . 93 100 100 100 100 100 100 86 Level 1 4 | . 6 . . . . . . 13 Level 2 . | . . . . . . . . . Level 3 . | . . . . . . . . . Level 4 . | . . . . . . . . . Level 5 . | . . . . . . . . . High Security . | . . . . . . . . . Max Security . | . . . . . . . . . Squads Dispatched 17 | . 2 1 . 1 4 2 1 6 Investigation 2 | . . . . . . . . 2 Extermination 5 | . . . . . 2 1 . 2 Reinforcement 10 | . 2 1 . 1 2 1 1 2 Assault . | . . . . . . . . . Garrison . | . . . . . . . . . Intercept . | . . . . . . . . . Searches Triggered . | . . . . . . . . . Construction Impeded 1 | . . . . . . . . 1 Haulers Reinforced 2 | . . . . . . 1 1 . Active Scanning Responses . | . . . . . . . . . Cargo Convoy Interrupts . | . . . . . . . . . Stealth | -11 -10 -9 -9 -8 -7 -6 -5 -4 --------- Run | Yrd Mat Mat Min Mat Fac Fac Fac Fac Distress Signals 6 | . . . . . 2 . 2 2 Communications Jammed . | . . . . . . . . . Distress Signals . | . . . . . . . . . Times Spotted 96 | . 10 4 . 2 16 11 11 42 Peak Tracking Total 11 | . 3 5 . 1 6 4 8 11 Tactical Retreats 7 | . 3 . . . . . . 4 Traps | -11 -10 -9 -9 -8 -7 -6 -5 -4 ------- Run | Yrd Mat Mat Min Mat Fac Fac Fac Fac Traps Triggered 2 | . . . . . 1 . . 1 Indirectly . | . . . . . . . . . Trap Hack Attempts . | . . . . . . . . . Triggered . | . . . . . . . . . Disarmed . | . . . . . . . . . Reprogrammed . | . . . . . . . . . Reused . | . . . . . . . . . Traps Extracted . | . . . . . . . . . Installed . | . . . . . . . . . Triggered . | . . . . . . . . . Machines | -11 -10 -9 -9 -8 -7 -6 -5 -4 ---------- Run | Yrd Mat Mat Min Mat Fac Fac Fac Fac Machines Disabled 2 | . . . . . . 1 . 1 Max in Single Turn 1 | . . . . . . 1 . 1 Machines Repaired . | . . . . . . . . . Machines Dismantled . | . . . . . . . . . Machines Sabotaged . | . . . . . . . . . Overloaded Fab Kills . | . . . . . . . . . Hacking | -11 -10 -9 -9 -8 -7 -6 -5 -4 --------- Run | Yrd Mat Mat Min Mat Fac Fac Fac Fac Machines Accessed 2 | . . . . . . 1 . 1 Terminals . | . . . . . . . . . Fabricators . | . . . . . . . . . Repair Stations 2 | . . . . . . 1 . 1 Recycling Units . | . . . . . . . . . Scanalyzers . | . . . . . . . . . Garrison Access . | . . . . . . . . . Total Hacks 4 | . . . . . . 2 . 2 Successful 3 | . . . . . . 1 . 2 Failed 1 | . . . . . . 1 . . Catastrophic 1 | . . . . . . 1 . . Database Lockouts . | . . . . . . . . . Manual . | . . . . . . . . . Terminals . | . . . . . . . . . Fabricators . | . . . . . . . . . Repair Stations 4 | . . . . . . 2 . 2 Recycling Units . | . . . . . . . . . Scanalyzers . | . . . . . . . . . Garrison Access . | . . . . . . . . . Terminal Hacks . | . . . . . . . . . Fabricator Hacks . | . . . . . . . . . Repair Station Hacks 3 | . . . . . . 1 . 2 Scan Component 2 | . . . . . . 1 . 1 Repair 1 | . . . . . . . . 1 Recycling Unit Hacks . | . . . . . . . . . Scanalyzer . | . . . . . . . . . Garrison Access Hacks . | . . . . . . . . . Unauthorized Hacks . | . . . . . . . . . Terminals . | . . . . . . . . . Fabricators . | . . . . . . . . . Repair Stations . | . . . . . . . . . Recycling Units . | . . . . . . . . . Scanalyzers . | . . . . . . . . . Garrison Access . | . . . . . . . . . Data Cores Recovered 2 | . . . . 1 1 . . . Used . | . . . . . . . . . Hacking Detections 1 | . . . . . . 1 . . Full Trace Events . | . . . . . . . . . Feedback Events . | . . . . . . . . . Feedback Blocked . | . . . . . . . . . Robot Schematics Acquired . | . . . . . . . . . Robots Built . | . . . . . . . . . Authchips . | . . . . . . . . . Time . | . . . . . . . . . Total Robot Build Rating . | . . . . . . . . . Part Schematics Acquired . | . . . . . . . . . Parts Built . | . . . . . . . . . Authchips . | . . . . . . . . . Time . | . . . . . . . . . Total Part Build Rating . | . . . . . . . . . Parts Repaired . | . . . . . . . . . Time 44 | . . . . . . . . 44 Parts Recycled . | . . . . . . . . . Recycled Matter . | . . . . . . . . . Retrieved Matter . | . . . . . . . . . Retrieved Components . | . . . . . . . . . Parts Scanalyzed . | . . . . . . . . . Part Schematics Acquired . | . . . . . . . . . Parts Damaged . | . . . . . . . . . Bothacking | -11 -10 -9 -9 -8 -7 -6 -5 -4 ------------ Run | Yrd Mat Mat Min Mat Fac Fac Fac Fac Used RIF Installer . | . . . . . . . . . Robots Hacked . | . . . . . . . . . Non-combat . | . . . . . . . . . Combat . | . . . . . . . . . Robot Hacks Applied . | . . . . . . . . . Relay Couplers Released 3 | . . . . . 3 . . . Programmers 3 | . . . . . 3 . . . Fabnet Peak Effective % . | . . . . . . . . . Robots Rewired . | . . . . . . . . . Allies Hacked . | . . . . . . . . . Hacks Repelled . | . . . . . . . . . Allies | -11 -10 -9 -9 -8 -7 -6 -5 -4 -------- Run | Yrd Mat Mat Min Mat Fac Fac Fac Fac Total Allies . | . . . . . . . . . Largest Group . | . . . . . . . . . Highest-Rated Group . | . . . . . . . . . Highest-Rated Ally . | . . . . . . . . . Total Orders . | . . . . . . . . . Ally Attacks . | . . . . . . . . . Total Damage . | . . . . . . . . . Kills . | . . . . . . . . . Allies Corrupted . | . . . . . . . . . Allies Melted . | . . . . . . . . . Intel | -11 -10 -9 -9 -8 -7 -6 -5 -4 ------- Run | Yrd Mat Mat Min Mat Fac Fac Fac Fac Robot Analysis Total . | . . . . . . . . . Derelict Logs Recovered 1 | . . . 1 . . . . . Drone Launches . | . . . . . . . . . Drone Recoveries . | . . . . . . . . . Exploration | -11 -10 -9 -9 -8 -7 -6 -5 -4 ------------- Run | Yrd Mat Mat Min Mat Fac Fac Fac Fac Turns Passed 3234 | . 321 109 28 285 793 313 509 876 Spaces Moved 1913 | 1 170 112 27 193 528 233 317 332 Core 3 | . . . . . . . . 3 Treads 41 | . . . . . . . . 41 Legs 71 | 1 32 . . . . . . 38 Wheels 1798 | . 138 112 27 193 528 233 317 250 Hover . | . . . . . . . . . Flight . | . . . . . . . . . Fastest Speed 80 | 120 100 93 93 93 80 101 101 101 Average Speed 104 | 120 103 93 93 93 96 101 101 135 Slowest Speed 850 | 120 120 93 93 93 101 101 101 850 Overloaded Moves . | . . . . . . . . . Propulsion Burnouts . | . . . . . . . . . Robots Hopped . | . . . . . . . . . Cave-ins Triggered . | . . . . . . . . . Exploration Rate (%) 16 | 2 44 14 9 22 25 7 14 11 Regions Visited 8 Branch Regions 1 Pre-discovered Areas . | . . . . . . . . . Known Exits Taken . | . . . . . . . . . Unknown Exits Taken 8 | 1 1 1 1 1 1 1 1 . Scrap Searched . | . . . . . . . . . Spaces Dug 1 | . . . . . . . . 1 Terrain Destroyed 16 | . 6 . . . 1 . . 9 Melee 1 | . . . . . . . . 1 Projectile 1 | . . . . . 1 . . . AOE 14 | . 6 . . . . . . 8 Terrain Rammed . | . . . . . . . . . Walls Destroyed . | . . . . . . . . . Machines Disabled . | . . . . . . . . . Actions | -11 -10 -9 -9 -8 -7 -6 -5 -4 --------- Run | Yrd Mat Mat Min Mat Fac Fac Fac Fac Total 2939 | . 271 116 28 295 788 300 495 646 Wait 716 | . 70 . . 85 172 54 152 183 Move 1905 | . 169 111 26 192 527 232 316 332 Hop . | . . . . . . . . . Pick Up 51 | . 2 . . 7 21 2 8 11 Fast Attach 26 | . 1 1 . 3 7 . . 14 Attach 33 | . 2 1 1 1 2 2 3 21 Detach 5 | . 2 1 . . 2 . . . Swap 33 | . 1 . . 1 14 2 1 14 Drop 46 | . . 1 . 4 28 2 6 5 Fire 53 | . 24 1 1 2 15 . . 10 Melee 71 | . . . . . . 6 9 56 Ram . | . . . . . . . . . Kick . | . . . . . . . . . Crush . | . . . . . . . . . Escape Stasis . | . . . . . . . . . Rewire . | . . . . . . . . . Trap . | . . . . . . . . . Miscellaneous . | . . . . . . . . . Route ------- -11/Scrapyard -10/Materials (discovered 2 exits: [*Mat] / [*Min]) -9/Materials -9/Mines -8/Materials (discovered 2 exits: [*Fac] / [*Sto]) -7/Factory -6/Factory -5/Factory -4/Factory History --------- Turn | Location | Event 1 | -11/Scrapyard | Discovered new exit (range 0) 1 | -11/Scrapyard | Entered Materials 104 | -10/Materials | Discovered new exit (range 16) 309 | -10/Materials | Discovered new exit (range 8) 311 | -10/Materials | Build established: Mutant 322 | -10/Materials | Entered another Materials area 322 | -9/Materials | Evolved 2 slots: Propulsion x1, Utility x1 380 | -9/Materials | Discovered new exit (range 16) 431 | -9/Materials | Entered Mines 443 | -9/Mines | Discovered new exit (range 5) 450 | -9/Mines | Learned 4 Materials zone layouts 459 | -9/Mines | Entered Materials 459 | -8/Materials | Evolved 2 slots: Utility x1, Weapon x1 536 | -8/Materials | Met 7R-MNS 611 | -8/Materials | Discovered new exit (range 9) 720 | -8/Materials | Discovered new exit (range 6) 744 | -8/Materials | Entered Factory 744 | -7/Factory | Evolved 2 slots: Propulsion x1, Utility x1 745 | -7/Factory | Caught up to 7R-MNS 1122 | -7/Factory | Build established: Scavenger-Tank 1485 | -7/Factory | Discovered new exit (range 11) 1487 | -7/Factory | Build established: Tank 1537 | -7/Factory | Entered another Factory area 1537 | -6/Factory | Evolved 2 slots: Utility x2 1538 | -6/Factory | Caught up to 7R-MNS 1848 | -6/Factory | Discovered new exit (range 3) 1850 | -6/Factory | Entered another Factory area 1850 | -5/Factory | Evolved 2 slots: Power x1, Utility x1 1851 | -5/Factory | Caught up to 7R-MNS 1872 | -5/Factory | Build established: Gladiator 2326 | -5/Factory | Discovered new exit (range 10) 2359 | -5/Factory | Entered another Factory area 2359 | -4/Factory | Evolved 2 slots: Utility x2 2360 | -4/Factory | Caught up to 7R-MNS 2657 | -4/Factory | 7R-MNS lamented failing the tripod run 2676 | -4/Factory | Build established: Scavenger-Gladiator 2753 | -4/Factory | Lost 12 parts (3p1n7u1w) 2764 | -4/Factory | Found Prototype Protection 2764 | -4/Factory | Identified Centrium Heavy Armor Plating 2870 | -4/Factory | Lost 5 parts (1n2u2w) 3076 | -4/Factory | Destroyed 8 combat bots 3163 | -4/Factory | Core integrity fell below 50% 3170 | -4/Factory | System corruption reached 10% 3214 | -4/Factory | Core integrity fell below 20% 3235 | -4/Factory | Destroyed by H-77 Assassin with Coil Gun Last Messages --------------- 03221_ K-01 Serf collects debris. 03221_ Slug penetrates Wall. 03221_ Mic. Fission Core destroyed. 03221_ Slug penetrates Door. 03222_ Wall collapses. 03222_ Penetrated by Slug. 03224_ K-01 Serf collects debris. 03224_ Penetrated by Slug. 03227_ K-01 Serf collects debris. 03227_ Acquired Unknown Hover Unit. 03227_ Identified Antigrav System. 03227_ Antigrav System destroyed. 03228_ Penetrated by Slug. 03229_ System corrupted: Heat flow error (+277). 03230_ K-01 Serf collects debris. 03231_ Slug penetrates Wall. 03231_ Katana destroyed. 03233_ K-01 Serf collects debris. 03234_ Penetrated by Slug. 03235_ Slug penetrates Wall. Map ----- +----------------------------------------------------+ | ????????? # ??????????????????????????? | | ????????? == +???????????????????????????? | | ????????? == #???????????????????????????? | | ????????? #???????????????????????????? | | ?????????? #???????????????????????????? | | ?????????? ! ???? ??????????????????????? | | ?????????? [%=% ???#%[ ??????????????????????? | | ??????????? =%[= ?????#== ??????????????????????? | | ?????????## #/ ??????#%* ??????????????????????? | | ##########"# #%#???????#[ ??????????????????????? | | * ! = #???????# ??????????????????????? | | % #???????# #####?????????????????? | | %* %#???????# ?????????????????? | | [ #???????? ??????????????????? | | ! #???????? ??????????????????? | | ##############!#????????? ???????????????????? | | ????????????##!#????????? ???????????????????? | | ?????????????# #####??#??? ????????????????????? | | ?????????????#|# #??? * ????????????????????? | | ?????????????#=# " " #?###%#????????????????????? | | ?????????????# # " " #?#!#=#????????????????????? | | ?????????????# # " " #?#=#h#????????????????????? | | ?????????????# # " " #?#[# ##???????????????????? | | ?????????????# # " " ####;;########?????????????? | | ?????????????# # " " #!=% [|=[[ #?????????????? | | ?????????????# # " " # =@Yk%=Y #?????????????? | | ###??????????# + " " # **[%"""" #?????????????? | | #??????????# # " " # *!![""""" #?????????????? | | #??????????# # # =!""" #?????????????? | | +??????????# # # = + ""?????????? | | #??????????# # # """"" # ????????????? | | ?????####### ######## """"" #?????????????? | | #??????# / """ #?????????????? | | #??????# ########### #?????????????? | | ######## #?????????# #?????????????? | | % % #?????????# #?????????????? | | ##+######????## ###########?????????????? | | # =!! #???#####???????????????????????? | | / =!! #??# #??????????????????????????? | | #####% % # =!/ #?# #???????????????????????????? | | ## ##############??????????????????????????? | | ## % ## % #??????????????????????????? | | %## [ # """|== "" #??????????????????????????? | | %+ % [ + """ ![R" #??????????????????????????? | | %#% # """ "" ###????????????????????????? | | # ###### * # ????????????????????? | | % # #????# % = #??????????????????????????? | | %[ # #????#############??????????????????????????? | | = # #???????????????????????????????????????????? | | #### #???????????????????????????????????????????? | +----------------------------------------------------+ Best States ------------- Heat Dissipation 57 Energy Generation 31 Energy Capacity 250 Matter Stores 300 Matter Capacity 300 Sight Range 16 Robot Scan Range 16 Terrain Scan Density 10 Armor Coverage 600 Propulsion Shielding 90 Utility Shielding 66 Evasion (%) 55 Targeting Accuracy 6 Melee Accuracy 12 Target Analysis 9 Recoil Reduction 2 Item Schematics ----------------- None Robot Schematics ------------------ None Fabricated ------------ Nothing Alien Tech Used ----------------- None Achievements -------------- None Challenges ------------ None Game ------ Seed MissileMultinovaCompactor Manual? 0 Play Time 00:31:05 Cumulative 253.1 hours Start 2024.04.20 @ 17:04:51 End 2024.04.20 @ 17:34:14 Sessions 3 Manual Loads 0 Difficulty Rogue Special Mode None Game No. 163 Rogue 163 Adventurer 0 Explorer 0 Win Type - Total 2 Types 2/0/0/0/0/0/0/0/0 Lore% 50 Gallery% 71 Achievement% 57 Wizard Run 0 Options --------- Layout 1 ASCII 0 Keyboard 1 Movement Numpad Keybinds 0 Fullscreen 1 Font 32/SmallcapsGlow Map View 50x35 Zoom Use 0% Tactical HUD 1 Map Filters NONE Filters NONE Steam 1 RUN: 969523a0-1ab9-4668-b766-bbee10f323e2